fUSD/lending_fUSD_20250522
["ID","MTS","AMOUNT","RATE_DAILY","PERIOD"]
[361973936,1747915840025,-438.6,0.00032876,5]
[361973939,1747915840038,-420.0,0.00032876,5]
[361973942,1747915840048,-420.0,0.00032876,5]
[361973945,1747915840058,-420.0,0.00032876,5]
[361973948,1747915840068,-420.0,0.00032876,5]
[361973951,1747915840078,-748.33,0.00032876,5]
[361973954,1747915840088,-855.77,0.00032876,5]
[361973957,1747915840099,-420.0,0.00032876,5]
[361973960,1747915840109,-2856.78,0.00032876,5]
[361973963,1747915840119,-420.0,0.00032876,5]
[361973966,1747915840130,-420.0,0.00032876,5]
[361973969,1747915840140,-420.0,0.00032876,5]
[361973972,1747915840150,-420.0,0.00032876,5]
[361973975,1747915840160,-929.37,0.00032876,5]
[361973978,1747915840170,-1171.24,0.00032876,5]
[361973981,1747915840180,-420.0,0.00032876,5]
[361973984,1747915840190,-420.0,0.00032876,5]
[361973988,1747915840200,-420.0,0.00032876,5]
[361973991,1747915840210,-543.91,0.00032876,5]
[361973994,1747915840220,-876.79,0.00032876,5]
[361973997,1747915840230,-420.0,0.00032876,5]
[361974001,1747915840241,-420.0,0.00032876,5]
[361974004,1747915840251,-658.25,0.00032876,5]
[361974007,1747915840261,-713.24,0.00032876,5]
[361974010,1747915840271,-998.58,0.00032876,5]
[361974012,1747915840282,-420.0,0.00032876,5]
[361974015,1747915840295,-1143.71,0.00032876,5]
[361974018,1747915840305,-420.0,0.00032876,5]
[361974020,1747915840315,-420.0,0.00032876,5]
[361974023,1747915840325,-420.0,0.00032876,5]
[361974026,1747915840336,-1808.58,0.00032876,5]
[361974029,1747915840346,-1547.83,0.00032876,5]
[361974031,1747915840356,-484.72,0.00032876,5]
[361974034,1747915840365,-560.29,0.00032876,5]
[361974036,1747915840375,-420.0,0.00032876,5]
[361974039,1747915840385,-420.0,0.00032876,5]
[361974042,1747915840396,-1178.41,0.00032876,5]
[361974043,1747915840406,-943.15,0.00032876,5]
[361974047,1747915840417,-420.0,0.00032876,5]
[361974050,1747915840427,-420.0,0.00032876,5]
[361974053,1747915840437,-420.0,0.00032876,5]
[361974055,1747915840446,-2924.62,0.00032876,5]
[361974057,1747915840456,-420.0,0.00032876,5]
[361974061,1747915840467,-420.0,0.00032876,5]
[361974064,1747915840477,-436.84,0.00032876,5]
[361974065,1747915840487,-843.63,0.00032876,5]
[361974069,1747915840497,-424.95,0.00032876,5]
[361974071,1747915840507,-420.0,0.00032876,5]
[361974074,1747915840517,-420.0,0.00032876,5]
[361974076,1747915840527,-420.0,0.00032876,5]
[361974080,1747915840539,-420.0,0.00032876,5]
[361974082,1747915840550,-695.1,0.00032876,5]
[361974085,1747915840560,-420.0,0.00032876,5]
[361974087,1747915840570,-1857.44,0.00032876,5]
[361974089,1747915840579,-420.0,0.00032876,5]
[361974092,1747915840589,-640.27,0.00032876,5]
[361974095,1747915840600,-9497.46,0.00032876,5]
[361974099,1747915840610,-420.0,0.00032876,5]
[361974101,1747915840620,-8107.62,0.00032876,5]
[361974104,1747915840629,-420.0,0.00032876,5]
[361974107,1747915840639,-540.01,0.00032876,5]
[361974110,1747915840649,-923.8,0.00032876,5]
[361974111,1747915840659,-879.84,0.00032876,5]
[361974114,1747915840670,-908.59,0.00032876,5]
[361974118,1747915840680,-534.06,0.00032876,5]
[361974121,1747915840690,-420.0,0.00032876,5]
[361974124,1747915840701,-2960.76,0.00032876,5]
[361974125,1747915840714,-1195.05,0.00032876,5]
[361974128,1747915840725,-437.21,0.00032876,5]
[361974131,1747915840737,-420.0,0.00032876,5]
[361974133,1747915840748,-420.0,0.00032876,5]
[361974136,1747915840759,-420.0,0.00032876,5]
[361974138,1747915840769,-420.0,0.00032876,5]
[361974140,1747915840779,-1632.95,0.00032876,5]
[361974143,1747915840795,-500.0,0.00032876,5]
[361974146,1747915840806,-2994.3,0.00032876,5]
[361974150,1747915840816,-737.32,0.00032876,5]
[361974152,1747915840826,-528.62,0.00032876,5]
[361974155,1747915840837,-420.0,0.00032876,5]
[361974157,1747915840847,-420.0,0.00032876,5]
[361974159,1747915840857,-1064.02,0.00032876,5]
[361974161,1747915840868,-420.0,0.00032876,5]
[361974163,1747915840877,-420.0,0.00032876,5]
[361974165,1747915840886,-420.0,0.00032876,5]
[361974167,1747915840897,-420.0,0.00032876,5]
[361974169,1747915840907,-937.26,0.00032876,5]
[361974172,1747915840917,-495.92,0.00032876,5]
[361974175,1747915840926,-420.0,0.00032876,5]
[361974178,1747915840936,-5621.67,0.00032876,5]
[361974181,1747915840946,-1353.16,0.00032876,5]
[361974183,1747915840955,-420.0,0.00032876,5]
[361974187,1747915840965,-26654.57,0.00032876,5]
[361974190,1747915840975,-420.0,0.00032876,5]
[361974193,1747915840985,-420.0,0.00032876,5]
[361974196,1747915840995,-420.0,0.00032876,5]
[361974199,1747915841006,-924.62,0.00032876,5]
[361974202,1747915841016,-420.0,0.00032876,5]
[361974205,1747915841026,-766.92,0.00032876,5]
[361974208,1747915841039,-420.0,0.00032876,5]
[361974211,1747915841049,-1344.87,0.00032876,5]
[361974214,1747915841059,-646.02,0.00032876,5]
[361974217,1747915841069,-420.0,0.00032876,5]
[361974220,1747915841078,-1795.02,0.00032876,5]
[361974223,1747915841088,-420.0,0.00032876,5]
[361974226,1747915841097,-1127.28,0.00032876,5]
[361974229,1747915841107,-420.0,0.00032876,5]
[361974232,1747915841118,-823.57,0.00032876,5]
[361974235,1747915841128,-420.0,0.00032876,5]
[361974238,1747915841138,-420.0,0.00032876,5]
[361974241,1747915841148,-776.38,0.00032876,5]
[361974244,1747915841158,-2637.06,0.00032876,5]
[361974247,1747915841168,-713.19,0.00032876,5]
[361974250,1747915841179,-893.93,0.00032876,5]
[361974253,1747915841189,-1019.17,0.00032876,5]
[361974256,1747915841198,-420.0,0.00032876,5]
[361974259,1747915841209,-420.0,0.00032876,5]
[361974262,1747915841220,-420.0,0.00032876,5]
[361974265,1747915841230,-712.65,0.00032876,5]
[361974268,1747915841240,-420.0,0.00032876,5]
[361974271,1747915841250,-484.44,0.00032876,5]
[361974274,1747915841260,-604.05,0.00032876,5]
[361974278,1747915841270,-420.0,0.00032876,5]
[361974281,1747915841280,-1324.59,0.00032876,5]
[361974284,1747915841291,-473.56900275,0.00032876,5]
[361974287,1747915841301,-480.82,0.00032876,5]
[361974290,1747915841311,-420.0,0.00032876,5]
[361974293,1747915841320,-420.0,0.00032876,5]
[361974295,1747915841330,-6129.1,0.00032876,5]
[361974299,1747915841341,-1297.62,0.00032876,5]
[361974302,1747915841351,-615.53,0.00032876,5]
[361974305,1747915841360,-420.0,0.00032876,5]
[361974308,1747915841370,-420.0,0.00032876,5]
[361974311,1747915841380,-802.97,0.00032876,5]
[361974314,1747915841390,-420.0,0.00032876,5]
[361974317,1747915841400,-420.0,0.00032876,5]
[361974320,1747915841410,-703.71,0.00032876,5]
[361974323,1747915841420,-420.0,0.00032876,5]
[361974326,1747915841429,-680.22,0.00032876,5]
[361974329,1747915841438,-424.98,0.00032876,5]
[361974332,1747915841448,-649.46,0.00032876,5]
[361974335,1747915841457,-1163.67,0.00032876,5]
[361974338,1747915841467,-2406.92,0.00032876,5]
[361974341,1747915841477,-2010.11,0.00032876,5]
[361974344,1747915841486,-420.0,0.00032876,5]
[361974347,1747915841495,-420.0,0.00032876,5]
[361974350,1747915841505,-420.0,0.00032876,5]
[361974353,1747915841514,-420.0,0.00032876,5]
[361974355,1747915841523,-420.0,0.00032876,5]
[361974358,1747915841532,-420.0,0.00032876,5]
[361974361,1747915841542,-420.0,0.00032876,5]
[361974365,1747915841552,-1361.26,0.00032876,5]
[361974368,1747915841561,-420.0,0.00032876,5]
[361974370,1747915841572,-528.75,0.00032876,5]
[361974374,1747915841582,-860.09,0.00032876,5]
[361974376,1747915841592,-1319.83,0.00032876,5]
[361974378,1747915841601,-420.0,0.00032876,5]
[361974380,1747915841613,-1467.11,0.00032876,5]
[361974382,1747915841622,-243.857603,0.00032876,5]
[361974383,1747915841632,-1146.9,0.00032876,5]
[361974385,1747915841642,-420.0,0.00032876,5]
[361974387,1747915841652,-420.0,0.00032876,5]
[361974389,1747915841662,-795.58,0.00032876,5]
[361974391,1747915841672,-296.30516856,0.00032876,5]
[361974393,1747915841681,-1000.0,0.00032876,30]
[361974396,1747915841691,-420.0,0.00032876,5]
[361974399,1747915841701,-420.0,0.00032876,5]
[361974403,1747915841712,-459.53,0.00032876,5]
[361974406,1747915841722,-591.1,0.00032876,5]
[361974409,1747915841732,-1399.67,0.00032876,5]
[361974412,1747915841741,-1086.01,0.00032876,5]
[361974415,1747915841751,-1153.28,0.00032876,5]
[361974417,1747915841761,-544.99,0.00032876,5]
[361974420,1747915841771,-465.44,0.00032876,5]
[361974422,1747915841780,-420.0,0.00032876,5]
[361974427,1747915841793,-420.0,0.00032876,5]
[361974429,1747915841803,-508.12,0.00032876,5]
[361974431,1747915841813,-420.0,0.00032876,5]
[361974433,1747915841822,-1484.62,0.00032876,5]
[361974492,1747915842204,-2332.05,0.00032876,3]
[361974494,1747915842219,-488.55,0.00032876,5]
[361974496,1747915842230,-901.5,0.00032876,5]
[361974498,1747915842240,-420.0,0.00032876,5]
[361974500,1747915842251,-420.0,0.00032876,5]
[361974502,1747915842260,-1122.39,0.00032876,5]
[361974505,1747915842270,-420.0,0.00032876,5]
[361974507,1747915842280,-420.0,0.00032876,5]
[361974509,1747915842291,-420.0,0.00032876,5]
[361974511,1747915842301,-996.38,0.00032876,5]
[361974513,1747915842311,-453.88,0.00032876,5]
[361974515,1747915842321,-420.0,0.00032876,5]
[361974517,1747915842331,-420.0,0.00032876,5]
[361974519,1747915842341,-420.0,0.00032876,5]
[361974521,1747915842351,-711.87,0.00032876,5]
[361974523,1747915842361,-2231.97,0.00032876,5]
[361974525,1747915842370,-420.0,0.00032876,5]
[361974527,1747915842379,-486.79,0.00032876,5]
[361974529,1747915842389,-420.0,0.00032876,5]
[361974531,1747915842398,-967.77,0.00032876,5]
[361974533,1747915842408,-1638.49,0.00032876,5]
[361974535,1747915842417,-1182.31,0.00032876,5]
[361974537,1747915842427,-420.0,0.00032876,5]
[361974539,1747915842436,-420.0,0.00032876,5]
[361974541,1747915842446,-420.0,0.00032876,5]
[361974543,1747915842456,-420.0,0.00032876,5]
[361974545,1747915842466,-420.0,0.00032876,5]
[361974547,1747915842475,-420.0,0.00032876,5]
[361974550,1747915842485,-1138.51,0.00032876,5]
[361974553,1747915842494,-748.71,0.00032876,5]
[361974556,1747915842505,-509.07204742,0.00032876,5]
[361974558,1747915842514,-420.0,0.00032876,5]
[361974559,1747915842523,-1080.96,0.00032876,5]
[361974560,1747915842532,-422.45,0.00032876,5]
[361974561,1747915842542,-420.0,0.00032876,5]
[361974562,1747915842552,-425.02,0.00032876,5]
[361974563,1747915842562,-808.46,0.00032876,5]
[361974564,1747915842572,-1743.41,0.00032876,5]
[361974565,1747915842582,-555.77646936,0.00032876,5]
[361974566,1747915842591,-403.12872188,0.00032876,5]
[361974567,1747915842601,-1497.06,0.00032876,5]
[361974568,1747915842611,-420.0,0.00032876,5]
[361974569,1747915842621,-420.0,0.00032876,5]
[361974570,1747915842631,-4291.07,0.00032876,5]
[361974571,1747915842640,-420.0,0.00032876,5]
[361974572,1747915842650,-431.85,0.00032876,5]
[361974573,1747915842660,-420.0,0.00032876,5]
[361974574,1747915842670,-420.0,0.00032876,5]
[361974575,1747915842680,-955.77,0.00032876,5]
[361974576,1747915842690,-3879.72,0.00032876,5]
[361974578,1747915842700,-841.95,0.00032876,5]
[361974579,1747915842711,-420.0,0.00032876,5]
[361974580,1747915842722,-420.0,0.00032876,5]
[361974581,1747915842732,-420.0,0.00032876,5]
[361974582,1747915842741,-2307.32,0.00032876,5]
[361974584,1747915842751,-420.0,0.00032876,5]
[361974585,1747915842762,-345.81936948,0.00032876,5]
[361974586,1747915842772,-420.0,0.00032876,5]
[361974587,1747915842781,-1513.3,0.00032876,5]
[361974588,1747915842794,-1249.33,0.00032876,5]
[361974589,1747915842805,-959.59,0.00032876,5]
[361974590,1747915842815,-1107.9,0.00032876,5]
[361974592,1747915842824,-9237.83,0.00032876,2]
[361974594,1747915842834,-420.0,0.00032876,5]
[361974596,1747915842843,-420.0,0.00032876,5]
[361974597,1747915842853,-420.0,0.00032876,5]
[361974599,1747915842863,-513.99,0.00032876,5]
[361974601,1747915842873,-621.15,0.00032876,5]
[361974603,1747915842882,-438.28,0.00032876,5]
[361974604,1747915842892,-420.0,0.00032876,5]
[361974605,1747915842902,-420.0,0.00032876,5]
[361974606,1747915842911,-639.77,0.00032876,5]
[361974607,1747915842921,-420.0,0.00032876,5]
[361974608,1747915842931,-420.0,0.00032876,5]
[361974609,1747915842941,-420.0,0.00032876,5]
[361974610,1747915842950,-1251.78,0.00032876,5]
[361974611,1747915842960,-420.0,0.00032876,5]
[361974613,1747915842970,-420.0,0.00032876,5]
[361974615,1747915842979,-420.0,0.00032876,5]
[361974617,1747915842989,-1078.55,0.00032876,5]
[361974618,1747915842998,-420.0,0.00032876,5]
[361974621,1747915843009,-821.22,0.00032876,5]
[361974622,1747915843018,-420.0,0.00032876,5]
[361974624,1747915843028,-427.31,0.00032876,5]
[361974627,1747915843040,-420.0,0.00032876,5]
[361974629,1747915843049,-555.44,0.00032876,5]
[361974631,1747915843059,-1121.81,0.00032876,5]
[361974633,1747915843068,-13830.6,0.00032876,5]
[361974634,1747915843078,-200.0,0.00032884,10]
[361974635,1747915843087,-150.0,0.00032949,2]
[361974636,1747915843097,-150.0,0.00032951,2]
[361974637,1747915843106,-800.0,0.00032958,12]
[361974638,1747915843116,-800.0,0.00032958,12]
[361974639,1747915843126,-800.0,0.00032958,12]
[361974640,1747915843136,-800.0,0.00032958,12]
[361974641,1747915843146,-800.0,0.00032958,12]
[361974642,1747915843156,-800.0,0.00032958,12]
[361974643,1747915843165,-800.0,0.00032958,12]
[361974644,1747915843175,-800.0,0.00032958,12]
[361974645,1747915843185,-800.0,0.00032958,12]
[361974646,1747915843194,-800.0,0.00032958,12]
[361974647,1747915843204,-4339.88273692,0.00032959,2]
[361974648,1747915843214,-2845.69441894,0.00032959,2]
[361974649,1747915843224,-167.5,0.0003301,2]
[361974650,1747915843234,-1056.44,0.00033014,2]
[361974651,1747915843243,-805.62,0.00033014,2]
[361974652,1747915843253,-458.34,0.00033014,2]
[361974653,1747915843263,-458.34,0.00033014,2]
[361974654,1747915843273,-458.34,0.00033014,2]
[361974655,1747915843283,-458.34,0.00033014,2]
[361974656,1747915843293,-915.32,0.00033014,2]
[361974657,1747915843303,-235.96914059,0.00033029,2]
[361974658,1747915843315,-178.35541336,0.00033039,7]
[361974659,1747915843326,-247.30937714,0.00033039,7]
[361974660,1747915843336,-422.05363544,0.00033039,7]
[361974661,1747915843346,-176.64875884,0.00033039,7]
[361974662,1747915843358,-500.0,0.00033039,7]
[361974663,1747915843368,-241.72583934,0.00033039,7]
[361974664,1747915843378,-500.0,0.00033039,7]
[361974665,1747915843387,-167.93613277,0.0003304,5]
[361974666,1747915843397,-51817.18353799,0.0003304,2]
[361974712,1747915844014,-417.1601092,0.0003304,2]
[361974714,1747915844027,-6519.31449639,0.0003304,2]
[361974716,1747915844040,-1741.25396891,0.0003304,2]
[361974718,1747915844052,-563.70807734,0.0003304,2]
[361974722,1747915844075,-1186.27,0.00032876,5]
[361974724,1747915844084,-316.19852206,0.0003304,2]
[361974726,1747915844096,-2436.27928737,0.0003304,2]
[361974728,1747915844111,-1159.0526,0.0003304,2]
[361974731,1747915844122,-1112.22,0.0003304,2]
[361974737,1747915844176,-3391.16405461,0.0003304,2]
[361974897,1747915845785,-337.0,0.00031348,3]
[361974899,1747915845797,-282.7789479,0.00032776,6]
[361974901,1747915845806,-420.0,0.00032876,5]
[361974903,1747915845815,-748.89223816,0.0003304,2]
[361974905,1747915845827,-1410.71076,0.0003304,2]
[361974907,1747915845838,-7249.70184797,0.0003304,2]
[361974909,1747915845846,-300.39204289,0.0003305,2]
[361974911,1747915845855,-150.0,0.00033052,2]
[361974913,1747915845865,-263.11119748,0.00033079,2]
[361974915,1747915845875,-200.10812764,0.00033095,7]
[361974917,1747915845884,-315.45497,0.000331,11]
[361974919,1747915845893,-350.0,0.00033116,2]
[361974921,1747915845902,-150.0,0.0003312,2]
[361974923,1747915845912,-235.96914059,0.00033123,2]
[361974926,1747915845921,-150.0,0.00033126,2]
[361974929,1747915845930,-471.93828118,0.00033133,2]
[361974931,1747915845939,-1252.25042113,0.0003314,2]
[361974933,1747915845948,-16.07397112,0.00033141,2]
[361974935,1747915845959,-4323.8087658,0.00033141,2]
[361974937,1747915845969,-1475.26047203,0.00033141,2]
[361974989,1747915846471,-1370.43394691,0.00033141,2]
[361974991,1747915846481,-151.0,0.00033143,7]
[361974993,1747915846492,-54018.56605309,0.00033143,2]
[361974996,1747915846521,-4741.35094822,0.00033143,2]
[361974997,1747915846537,-420.0,0.00032876,5]
[361974998,1747915846547,-4916.08955692,0.00033143,2]
[361974999,1747915846558,-518.70740925,0.00033143,2]
[361975000,1747915846569,-20477.47832502,0.00033143,2]
[361975001,1747915846581,-9054.74075626,0.00033143,2]
[361975002,1747915846591,-19935.5484683,0.00033143,2]
[361975075,1747915847324,-420.0,0.00032876,5]
[361975077,1747915847333,-196.45065124,0.00032876,5]
[361975089,1747915847441,-223.54934876,0.00032876,5]
[361975091,1747915847451,-420.0,0.00032876,5]
[361975093,1747915847460,-22235.10313474,0.00033143,2]
[361975095,1747915847469,-4547.4510194,0.00033143,2]
[361975097,1747915847479,-11453.1642948,0.00033143,2]
[361975099,1747915847487,-16758.90975298,0.00033143,2]
[361975101,1747915847499,-712.68,0.00033143,2]
[361975104,1747915847518,-1020.7,0.00033143,2]
[361975116,1747915847619,-1430.72863869,0.00033143,2]
[361975203,1747915848566,-770.95840931,0.00033143,2]
[361975205,1747915848578,-2045.4000001,0.00033143,2]
[361975208,1747915848590,-35950.86721962,0.00033143,2]
[361975210,1747915848600,-298.72824294,0.00033148,120]
[361975212,1747915848610,-1150.54431572,0.00033149,30]
[361975214,1747915848620,-429.361627,0.0003315,5]
[361975216,1747915848629,-150.850086,0.0003315,5]
[361975218,1747915848639,-420.0,0.0003315,5]
[361975220,1747915848648,-420.0,0.0003315,5]
[361975222,1747915848658,-1060.07,0.0003315,5]
[361975223,1747915848667,-812.83638469,0.0003315,5]
[361975226,1747915848683,-255.43361531,0.0003315,5]
[361975228,1747915848693,-420.0,0.0003315,5]
[361975230,1747915848703,-691.44,0.0003315,5]
[361975232,1747915848716,-442.32,0.0003315,5]
[361975234,1747915848726,-44.32908869,0.0003315,5]
[361975236,1747915848739,-392.81091131,0.0003315,5]
[361975238,1747915848748,-429.98,0.0003315,5]
[361975241,1747915848758,-420.0,0.0003315,5]
[361975243,1747915848768,-420.0,0.0003315,5]
[361975244,1747915848776,-792.37,0.0003315,5]
[361975246,1747915848786,-420.0,0.0003315,5]
[361975248,1747915848799,-349.69592869,0.0003315,5]
[361975251,1747915848811,-70.30407131,0.0003315,5]
[361975253,1747915848822,-420.0,0.0003315,5]
[361975255,1747915848831,-420.0,0.0003315,5]
[361975257,1747915848842,-420.0,0.0003315,5]
[361975259,1747915848852,-420.0,0.0003315,5]
[361975261,1747915848862,-908.88,0.0003315,5]
[361975263,1747915848872,-420.0,0.0003315,5]
[361975265,1747915848882,-435.67,0.0003315,5]
[361975267,1747915848893,-420.0,0.0003315,5]
[361975269,1747915848904,-486.67,0.0003315,5]
[361975271,1747915848914,-420.0,0.0003315,5]
[361975273,1747915848924,-420.0,0.0003315,5]
[361975275,1747915848933,-1007.36,0.0003315,5]
[361975277,1747915848943,-420.0,0.0003315,5]
[361975279,1747915848953,-420.0,0.0003315,5]
[361975281,1747915848963,-420.0,0.0003315,5]
[361975283,1747915848973,-451.81,0.0003315,5]
[361975285,1747915848983,-696.82,0.0003315,5]
[361975287,1747915848993,-473.02,0.0003315,5]
[361975289,1747915849003,-420.0,0.0003315,5]
[361975291,1747915849013,-420.0,0.0003315,5]
[361975293,1747915849023,-200.65783672,0.0003315,5]
[361975295,1747915849033,-420.0,0.0003315,5]
[361975297,1747915849045,-420.0,0.0003315,5]
[361975299,1747915849055,-420.0,0.0003315,5]
[361975301,1747915849065,-794.53,0.0003315,5]
[361975303,1747915849075,-420.0,0.0003315,5]
[361975305,1747915849085,-420.0,0.0003315,5]
[361975307,1747915849094,-420.0,0.0003315,5]
[361975309,1747915849105,-420.0,0.0003315,5]
[361975311,1747915849115,-739.22,0.0003315,5]
[361975313,1747915849124,-158.246478,0.0003315,7]
[361975315,1747915849134,-785.38,0.0003315,5]
[361975316,1747915849145,-420.0,0.0003315,5]
[361975319,1747915849156,-947.4,0.0003315,5]
[361975321,1747915849166,-595.34,0.0003315,5]
[361975323,1747915849177,-509.87,0.0003315,5]
[361975324,1747915849187,-428.31,0.0003315,5]
[361975326,1747915849197,-420.0,0.0003315,5]
[361975329,1747915849208,-420.0,0.0003315,5]
[361975331,1747915849218,-737.06,0.0003315,5]
[361975332,1747915849228,-1047.43,0.0003315,5]
[361975334,1747915849238,-420.0,0.0003315,5]
[361975337,1747915849249,-420.0,0.0003315,5]
[361975339,1747915849259,-918.0,0.0003315,5]
[361975341,1747915849269,-420.0,0.0003315,5]
[361975343,1747915849279,-420.0,0.0003315,5]
[361975345,1747915849291,-478.64,0.0003315,5]
[361975347,1747915849302,-420.0,0.0003315,5]
[361975349,1747915849313,-420.0,0.0003315,5]
[361975351,1747915849324,-532.34,0.0003315,5]
[361975353,1747915849334,-420.0,0.0003315,5]
[361975355,1747915849345,-420.0,0.0003315,5]
[361975357,1747915849355,-717.2,0.0003315,5]
[361975359,1747915849365,-420.0,0.0003315,5]
[361975361,1747915849375,-450.46,0.0003315,5]
[361975363,1747915849385,-1054.38,0.0003315,5]
[361975365,1747915849396,-420.0,0.0003315,5]
[361975367,1747915849406,-420.0,0.0003315,5]
[361975369,1747915849416,-420.0,0.0003315,5]
[361975371,1747915849426,-752.91,0.0003315,5]
[361975373,1747915849437,-420.0,0.0003315,5]
[361975375,1747915849447,-935.6,0.0003315,5]
[361975376,1747915849457,-420.0,0.0003315,5]
[361975377,1747915849466,-420.0,0.0003315,5]
[361975378,1747915849476,-809.48,0.0003315,5]
[361975379,1747915849486,-420.0,0.0003315,5]
[361975380,1747915849496,-283.39244606,0.0003315,5]
[361975381,1747915849506,-420.0,0.0003315,5]
[361975382,1747915849516,-420.0,0.0003315,5]
[361975383,1747915849526,-595.14,0.0003315,5]
[361975384,1747915849536,-588.71,0.0003315,5]
[361975386,1747915849550,-420.0,0.0003315,5]
[361975388,1747915849561,-622.09,0.0003315,5]
[361975390,1747915849571,-516.82,0.0003315,5]
[361975392,1747915849581,-420.0,0.0003315,5]
[361975394,1747915849591,-593.68,0.0003315,5]
[361975396,1747915849601,-698.19,0.0003315,5]
[361975398,1747915849610,-514.2,0.0003315,5]
[361975400,1747915849619,-683.65,0.0003315,5]
[361975402,1747915849629,-420.0,0.0003315,5]
[361975404,1747915849639,-1064.62,0.0003315,5]
[361975406,1747915849649,-420.0,0.0003315,5]
[361975408,1747915849658,-420.0,0.0003315,5]
[361975410,1747915849667,-530.69465808,0.0003315,5]
[361975412,1747915849677,-665.33,0.0003315,5]
[361975414,1747915849686,-618.19,0.0003315,5]
[361975416,1747915849696,-420.0,0.0003315,5]
[361975418,1747915849711,-711.72,0.0003315,5]
[361975420,1747915849720,-485.74,0.0003315,5]
[361975422,1747915849730,-420.0,0.0003315,5]
[361975424,1747915849740,-420.0,0.0003315,5]
[361975426,1747915849751,-1291.35,0.0003315,5]
[361975428,1747915849760,-420.0,0.0003315,5]
[361975430,1747915849770,-461.17,0.0003315,5]
[361975432,1747915849780,-1096.83,0.0003315,5]
[361975434,1747915849792,-1011.0,0.0003315,5]
[361975436,1747915849803,-420.0,0.0003315,5]
[361975438,1747915849812,-893.59,0.0003315,5]
[361975440,1747915849822,-420.0,0.0003315,5]
[361975442,1747915849831,-420.0,0.0003315,5]
[361975444,1747915849841,-864.04,0.0003315,5]
[361975446,1747915849850,-420.0,0.0003315,5]
[361975448,1747915849859,-420.0,0.0003315,5]
[361975450,1747915849870,-420.0,0.0003315,5]
[361975452,1747915849879,-1128.47,0.0003315,5]
[361975454,1747915849889,-517.29,0.0003315,5]
[361975456,1747915849899,-796.98,0.0003315,5]
[361975458,1747915849910,-420.0,0.0003315,5]
[361975460,1747915849920,-420.0,0.0003315,5]
[361975462,1747915849929,-420.0,0.0003315,5]
[361975464,1747915849938,-420.0,0.0003315,5]
[361975466,1747915849948,-457.01,0.0003315,5]
[361975468,1747915849957,-420.0,0.0003315,5]
[361975470,1747915849967,-420.0,0.0003315,5]
[361975472,1747915849976,-420.0,0.0003315,5]
[361975474,1747915849986,-527.54,0.0003315,5]
[361975476,1747915849996,-966.8,0.0003315,5]
[361975478,1747915850006,-420.0,0.0003315,5]
[361975480,1747915850015,-420.0,0.0003315,5]
[361975482,1747915850026,-1166.25,0.0003315,5]
[361975483,1747915850036,-435.12,0.0003315,5]
[361975486,1747915850047,-420.0,0.0003315,5]
[361975487,1747915850056,-420.0,0.0003315,5]
[361975489,1747915850066,-460.31,0.0003315,5]
[361975491,1747915850075,-592.08,0.0003315,5]
[361975493,1747915850085,-686.25,0.0003315,5]